[Event "Live Chess"]
[Site "Chess.com"]
[Date "2023.05.21"]
[Round "-"]
[White "whitedjohn"]
[Black "stevochess11"]
[Result "1-0"]
[WhiteElo "1641"]
[BlackElo "1754"]
[TimeControl "300"]
[EndTime "1:37:16 PDT"]
[Termination "whitedjohn won by resignation"]

1. e4 {[%clk 0:04:56]} 1... c5 {[%clk 0:04:58.7]} 2. Nf3 {[%clk 0:04:54.5]} 2...
g6 {[%clk 0:04:57.8]} 3. d4 {[%clk 0:04:53.6]} 3... cxd4 {[%clk 0:04:56.4]} 4.
Nxd4 {[%clk 0:04:53.2]} 4... Nc6 {[%clk 0:04:55.6]} 5. Nc3 {[%clk 0:04:51.7]}
5... Bg7 {[%clk 0:04:52.8]} 6. Be3 {[%clk 0:04:50.7]} 6... Nf6 {[%clk
0:04:50.4]} 7. f3 {[%clk 0:04:49.6]} 7... O-O {[%clk 0:04:48.6]} 8. Qd2 {[%clk
0:04:49.3]} 8... d5 {[%clk 0:04:46.8]} 9. Nxc6 {[%clk 0:04:47.1]} 9... bxc6
{[%clk 0:04:43.5]} 10. e5 {[%clk 0:04:46.4]} 10... Nd7 {[%clk 0:04:40.9]} 11. f4
{[%clk 0:04:45.2]} 11... e6 {[%clk 0:04:35.4]} 12. O-O-O {[%clk 0:04:43.3]}
12... Qa5 {[%clk 0:04:28.9]} 13. Kb1 {[%clk 0:04:39.5]} 13... c5 {[%clk
0:04:20.9]} 14. Nxd5 {[%clk 0:04:29.5]} 14... Qxd2 {[%clk 0:04:12.4]} 15. Ne7+
{[%clk 0:04:28.2]} 15... Kh8 {[%clk 0:04:09.8]} 16. Rxd2 {[%clk 0:04:24.9]}
16... g5 {[%clk 0:03:59.8]} 17. Nxc8 {[%clk 0:04:18.2]} 17... Nxe5 {[%clk
0:03:41.1]} 18. fxe5 {[%clk 0:04:16.4]} 18... Raxc8 {[%clk 0:03:34.3]} 19. Bxg5
{[%clk 0:04:02.4]} 19... Bxe5 {[%clk 0:03:32]} 20. Bc4 {[%clk 0:03:54]} 20...
Rb8 {[%clk 0:03:30.2]} 21. b3 {[%clk 0:03:42.8]} 21... Rg8 {[%clk 0:03:25.1]}
22. Be3 {[%clk 0:03:34.2]} 22... Rg4 {[%clk 0:03:21.7]} 23. Kc1 {[%clk
0:03:20.3]} 23... Bc3 {[%clk 0:03:05]} 24. Re2 {[%clk 0:03:10.4]} 24... Bb4
{[%clk 0:03:01.1]} 25. h3 {[%clk 0:03:06.7]} 25... Ba3+ {[%clk 0:02:59.8]} 26.
Kd1 {[%clk 0:02:59.9]} 26... Rd8+ {[%clk 0:02:58.5]} 27. Ke1 {[%clk 0:02:54.1]}
27... Bb4+ {[%clk 0:02:55.1]} 28. Kf1 {[%clk 0:02:46.2]} 28... Re4 {[%clk
0:02:47.3]} 29. Kf2 {[%clk 0:02:38.6]} 29... f5 {[%clk 0:02:44.3]} 30. Bd3
{[%clk 0:02:34.9]} 30... Re5 {[%clk 0:02:41.6]} 31. Bg5 {[%clk 0:02:29.8]} 31...
Rf8 {[%clk 0:02:36.1]} 32. Rxe5 {[%clk 0:02:27]} 1-0

[Event "Live Chess"]
[Site "Chess.com"]
[Date "2023.05.21"]
[Round "-"]
[White "OleksiyJr1"]
[Black "Long1968"]
[Result "1-0"]
[WhiteElo "979"]
[BlackElo "991"]
[TimeControl "300"]
[EndTime "1:37:33 PDT"]
[Termination "OleksiyJr1 won on time"]

1. e4 {[%clk 0:04:58.7]} 1... e6 {[%clk 0:04:58.4]} 2. Nf3 {[%clk 0:04:54.6]}
2... d5 {[%clk 0:04:54.4]} 3. e5 {[%clk 0:04:54.2]} 3... c5 {[%clk 0:04:51.4]}
4. d4 {[%clk 0:04:53.4]} 4... cxd4 {[%clk 0:04:48.4]} 5. Nxd4 {[%clk 0:04:51.2]}
5... Nc6 {[%clk 0:04:45.8]} 6. Nxc6 {[%clk 0:04:49.4]} 6... bxc6 {[%clk
0:04:43.2]} 7. Nc3 {[%clk 0:04:49.3]} 7... Qc7 {[%clk 0:04:34.6]} 8. f4 {[%clk
0:04:47.9]} 8... Bb4 {[%clk 0:04:28.1]} 9. Bd2 {[%clk 0:04:45.8]} 9... Ne7
{[%clk 0:04:16.4]} 10. a3 {[%clk 0:04:27.1]} 10... Bxc3 {[%clk 0:04:00.5]} 11.
Bxc3 {[%clk 0:04:05.8]} 11... c5 {[%clk 0:03:56.2]} 12. Qg4 {[%clk 0:03:40.4]}
12... Ng6 {[%clk 0:03:46.1]} 13. Bd3 {[%clk 0:03:33.4]} 13... O-O {[%clk
0:03:36.7]} 14. Bxg6 {[%clk 0:03:31.1]} 14... fxg6 {[%clk 0:03:32.5]} 15. h4
{[%clk 0:03:28]} 15... Rf5 {[%clk 0:03:25.1]} 16. O-O-O {[%clk 0:03:22.8]} 16...
Bb7 {[%clk 0:03:09.5]} 17. h5 {[%clk 0:03:17.6]} 17... gxh5 {[%clk 0:02:30.2]}
18. Rxh5 {[%clk 0:03:02.8]} 18... Qf7 {[%clk 0:02:25.1]} 19. Rxf5 {[%clk
0:02:58.2]} 19... Qxf5 {[%clk 0:02:18.9]} 20. Qxf5 {[%clk 0:02:56.8]} 20... exf5
{[%clk 0:02:16]} 21. g3 {[%clk 0:02:55.5]} 21... d4 {[%clk 0:02:11]} 22. Be1
{[%clk 0:02:52.9]} 22... Rd8 {[%clk 0:01:44.1]} 23. c3 {[%clk 0:02:50.1]} 23...
d3 {[%clk 0:01:28.5]} 24. b4 {[%clk 0:02:43.2]} 24... cxb4 {[%clk 0:01:03.7]}
25. cxb4 {[%clk 0:02:43.1]} 25... Rc8+ {[%clk 0:00:45.3]} 26. Kb2 {[%clk
0:02:39.5]} 26... Be4 {[%clk 0:00:30.9]} 27. e6 {[%clk 0:02:28]} 27... Rc2+
{[%clk 0:00:16.6]} 28. Kb3 {[%clk 0:02:10.7]} 28... Kf8 {[%clk 0:00:04.1]} 29.
Rd2 {[%clk 0:02:04.4]} 1-0

[Event "Live Chess"]
[Site "Chess.com"]
[Date "2023.05.21"]
[Round "-"]
[White "JoshMcK"]
[Black "LiamClery2020"]
[Result "0-1"]
[WhiteElo "1530"]
[BlackElo "2027"]
[TimeControl "300"]
[EndTime "1:37:41 PDT"]
[Termination "LiamClery2020 won by resignation"]

1. e4 {[%clk 0:04:58.1]} 1... Nf6 {[%clk 0:04:59.9]} 2. e5 {[%clk 0:04:57]} 2...
Nd5 {[%clk 0:04:59.1]} 3. d4 {[%clk 0:04:56.7]} 3... d6 {[%clk 0:04:58.5]} 4. c4
{[%clk 0:04:56.2]} 4... Nb6 {[%clk 0:04:57.9]} 5. f4 {[%clk 0:04:55]} 5... dxe5
{[%clk 0:04:57.2]} 6. fxe5 {[%clk 0:04:54.3]} 6... Nc6 {[%clk 0:04:56.7]} 7. Be3
{[%clk 0:04:52.9]} 7... Bf5 {[%clk 0:04:56.1]} 8. Nc3 {[%clk 0:04:51.4]} 8... e6
{[%clk 0:04:54.3]} 9. Nf3 {[%clk 0:04:50.3]} 9... Be7 {[%clk 0:04:53.5]} 10. Be2
{[%clk 0:04:49.5]} 10... O-O {[%clk 0:04:52.4]} 11. O-O {[%clk 0:04:48.9]} 11...
f6 {[%clk 0:04:52.1]} 12. exf6 {[%clk 0:04:47.6]} 12... Bxf6 {[%clk 0:04:52]}
13. Qd2 {[%clk 0:04:41.4]} 13... Qe7 {[%clk 0:04:50.3]} 14. Rad1 {[%clk
0:04:37.6]} 14... Rad8 {[%clk 0:04:47.1]} 15. Kh1 {[%clk 0:04:31.8]} 15... Bg4
{[%clk 0:04:43.8]} 16. h3 {[%clk 0:04:26.9]} 16... Bxf3 {[%clk 0:04:42.4]} 17.
Bxf3 {[%clk 0:04:25.3]} 17... Nxc4 {[%clk 0:04:41.4]} 18. Qc1 {[%clk 0:04:23.1]}
18... Nxe3 {[%clk 0:04:38.4]} 19. Qxe3 {[%clk 0:04:23]} 19... Nxd4 {[%clk
0:04:37.4]} 20. Bxb7 {[%clk 0:04:16.8]} 20... Nf5 {[%clk 0:04:36.4]} 21. Qe1
{[%clk 0:04:05.5]} 21... Bh4 {[%clk 0:04:33.6]} 22. Qe4 {[%clk 0:03:58]} 22...
Ng3+ {[%clk 0:04:32.1]} 0-1

[Event "Live Chess"]
[Site "Chess.com"]
[Date "2023.05.21"]
[Round "-"]
[White "Richardallis"]
[Black "EdenHazard8"]
[Result "0-1"]
[WhiteElo "1865"]
[BlackElo "1950"]
[TimeControl "300"]
[EndTime "1:37:48 PDT"]
[Termination "EdenHazard8 won by resignation"]

1. d4 {[%clk 0:04:58.2]} 1... d5 {[%clk 0:04:58.3]} 2. Nf3 {[%clk 0:04:57.6]}
2... Nf6 {[%clk 0:04:55.8]} 3. Bg5 {[%clk 0:04:57]} 3... Bf5 {[%clk 0:04:52.1]}
4. Nbd2 {[%clk 0:04:56.2]} 4... e6 {[%clk 0:04:51.1]} 5. e3 {[%clk 0:04:54.6]}
5... c5 {[%clk 0:04:49.2]} 6. Bd3 {[%clk 0:04:53.3]} 6... Bg6 {[%clk 0:04:47]}
7. Bxg6 {[%clk 0:04:51.2]} 7... hxg6 {[%clk 0:04:46.9]} 8. c3 {[%clk 0:04:50.2]}
8... Nc6 {[%clk 0:04:45.4]} 9. O-O {[%clk 0:04:47]} 9... cxd4 {[%clk 0:04:43.7]}
10. exd4 {[%clk 0:04:45.8]} 10... Bd6 {[%clk 0:04:42.3]} 11. Re1 {[%clk
0:04:44.1]} 11... Qc7 {[%clk 0:04:34.9]} 12. h3 {[%clk 0:04:42.3]} 12... O-O-O
{[%clk 0:04:28.9]} 13. b4 {[%clk 0:04:41.1]} 13... Ne7 {[%clk 0:04:17.6]} 14.
Nb3 {[%clk 0:04:37.5]} 14... Ne4 {[%clk 0:04:08.8]} 15. Bxe7 {[%clk 0:04:33.9]}
15... Bxe7 {[%clk 0:04:00.2]} 16. Qd3 {[%clk 0:04:32.4]} 16... Kb8 {[%clk
0:03:52.3]} 17. Rac1 {[%clk 0:04:29.3]} 17... f5 {[%clk 0:03:36.5]} 18. Ne5
{[%clk 0:04:25.8]} 18... Bd6 {[%clk 0:03:28.6]} 19. Nxg6 {[%clk 0:04:24.5]}
19... Rh6 {[%clk 0:03:14.1]} 20. Ne5 {[%clk 0:04:22.2]} 20... Bxe5 {[%clk
0:03:02.5]} 21. dxe5 {[%clk 0:04:21]} 21... Qxe5 {[%clk 0:03:02.4]} 22. f3
{[%clk 0:04:20.2]} 22... Qg3 {[%clk 0:02:59.9]} 23. Re2 {[%clk 0:04:14]} 23...
Rxh3 {[%clk 0:02:55.5]} 24. Rxe4 {[%clk 0:03:37.2]} 24... fxe4 {[%clk
0:02:51.9]} 25. Qe3 {[%clk 0:03:31.8]} 25... exf3 {[%clk 0:02:49.8]} 26. Qxf3
{[%clk 0:03:29.6]} 26... Qxf3 {[%clk 0:02:48.6]} 27. gxf3 {[%clk 0:03:29]} 27...
Rxf3 {[%clk 0:02:48.5]} 28. Nd4 {[%clk 0:03:28]} 28... Re3 {[%clk 0:02:45.4]}
29. Kf2 {[%clk 0:03:26.2]} 29... Re4 {[%clk 0:02:43.3]} 30. Nf3 {[%clk
0:03:20.3]} 30... Rc8 {[%clk 0:02:40.5]} 31. Ng5 {[%clk 0:03:18.4]} 31... Rxb4
{[%clk 0:02:38]} 32. Nxe6 {[%clk 0:03:15.6]} 32... Rb2+ {[%clk 0:02:37.1]} 33.
Ke3 {[%clk 0:03:13.8]} 33... Rxa2 {[%clk 0:02:37]} 34. Nxg7 {[%clk 0:03:09.1]}
34... Ra4 {[%clk 0:02:34.5]} 35. Kd3 {[%clk 0:03:05.8]} 35... d4 {[%clk
0:02:28.6]} 36. c4 {[%clk 0:03:04.5]} 36... b5 {[%clk 0:02:25.6]} 37. c5 {[%clk
0:02:58.6]} 37... Rc4 {[%clk 0:02:23]} 38. Rxc4 {[%clk 0:02:56.4]} 38... bxc4+
{[%clk 0:02:22.9]} 39. Kxc4 {[%clk 0:02:55.3]} 39... Rd8 {[%clk 0:02:21.4]} 40.
Ne6 {[%clk 0:02:52]} 40... d3 {[%clk 0:02:18.1]} 41. Nxd8 {[%clk 0:02:51]} 41...
d2 {[%clk 0:02:15.7]} 42. Nc6+ {[%clk 0:02:50.5]} 42... Kc7 {[%clk 0:02:12.7]}
43. Nxa7 {[%clk 0:02:47.7]} 43... d1=Q {[%clk 0:02:11.1]} 44. Nb5+ {[%clk
0:02:47.1]} 44... Kb7 {[%clk 0:02:06.6]} 45. Nd6+ {[%clk 0:02:45.5]} 45... Kc6
{[%clk 0:02:05.2]} 46. Nb5 {[%clk 0:02:44.9]} 46... Qa4+ {[%clk 0:02:03.1]} 0-1

[Event "Live Chess"]
[Site "Chess.com"]
[Date "2023.05.21"]
[Round "-"]
[White "RamsayFlayer"]
[Black "jagbama"]
[Result "1-0"]
[WhiteElo "1973"]
[BlackElo "1166"]
[TimeControl "300"]
[EndTime "1:37:54 PDT"]
[Termination "RamsayFlayer won on time"]

1. e4 {[%clk 0:04:58.6]} 1... e5 {[%clk 0:04:58.5]} 2. Nf3 {[%clk 0:04:57.4]}
2... Nc6 {[%clk 0:04:57.4]} 3. Bb5 {[%clk 0:04:57]} 3... d6 {[%clk 0:04:54.1]}
4. d4 {[%clk 0:04:54.9]} 4... a6 {[%clk 0:04:52.5]} 5. Bxc6+ {[%clk 0:04:51]}
5... bxc6 {[%clk 0:04:50.7]} 6. dxe5 {[%clk 0:04:50.6]} 6... dxe5 {[%clk
0:04:49.6]} 7. Qxd8+ {[%clk 0:04:50]} 7... Kxd8 {[%clk 0:04:48.9]} 8. Nxe5
{[%clk 0:04:49.5]} 8... Ke8 {[%clk 0:04:46.8]} 9. Nxc6 {[%clk 0:04:47.8]} 9...
Bb7 {[%clk 0:04:46.2]} 10. Nd4 {[%clk 0:04:38]} 10... Bxe4 {[%clk 0:04:44.8]}
11. Nc3 {[%clk 0:04:33.1]} 11... Bxc2 {[%clk 0:04:42.6]} 12. O-O {[%clk
0:04:29.1]} 12... Bg6 {[%clk 0:04:40.8]} 13. Re1+ {[%clk 0:04:26.7]} 13... Be7
{[%clk 0:04:36.1]} 14. Nd5 {[%clk 0:04:24.8]} 14... Rd8 {[%clk 0:04:21.6]} 15.
Nxc7+ {[%clk 0:04:08]} 15... Kf8 {[%clk 0:04:12.2]} 16. Nc6 {[%clk 0:04:05.4]}
16... Rc8 {[%clk 0:04:03.7]} 17. Nxe7 {[%clk 0:03:58.6]} 17... Nxe7 {[%clk
0:04:00.6]} 18. Nxa6 {[%clk 0:03:56.4]} 18... h5 {[%clk 0:03:47.5]} 19. Bf4
{[%clk 0:03:51.6]} 19... Nf5 {[%clk 0:03:37.8]} 20. Rac1 {[%clk 0:03:46.2]}
20... Ra8 {[%clk 0:03:18]} 21. Nb4 {[%clk 0:03:36.7]} 21... h4 {[%clk
0:03:05.3]} 22. Nd5 {[%clk 0:03:28.7]} 22... f6 {[%clk 0:02:43.4]} 23. Ne3
{[%clk 0:03:25.7]} 23... Nxe3 {[%clk 0:02:27.4]} 24. Bd6+ {[%clk 0:03:12.4]}
24... Kf7 {[%clk 0:02:16.5]} 25. Rxe3 {[%clk 0:03:04.8]} 25... Rh5 {[%clk
0:01:53.3]} 26. Rc7+ {[%clk 0:02:58.5]} 26... Kg8 {[%clk 0:01:50.8]} 27. Ree7
{[%clk 0:02:52.6]} 27... Rh7 {[%clk 0:01:34.7]} 28. a3 {[%clk 0:02:45.2]} 28...
Rd8 {[%clk 0:01:33.3]} 29. Rcd7 {[%clk 0:02:39.4]} 29... Rc8 {[%clk 0:01:24.4]}
30. h3 {[%clk 0:02:34.4]} 30... Be8 {[%clk 0:01:02.2]} 31. Rc7 {[%clk 0:02:21]}
31... Rd8 {[%clk 0:01:00]} 32. b4 {[%clk 0:02:16.5]} 32... Ba4 {[%clk
0:00:12.8]} 33. Rb7 {[%clk 0:01:40.1]} 33... Re8 {[%clk 0:00:02.1]} 34. Rxe8+
{[%clk 0:01:36.4]} 34... Bxe8 {[%clk 0:00:00.6]} 35. b5 {[%clk 0:01:34.9]} 1-0

[Event "Live Chess"]
[Site "Chess.com"]
[Date "2023.05.21"]
[Round "-"]
[White "Mugzwang"]
[Black "Ferrarifan27"]
[Result "0-1"]
[WhiteElo "1551"]
[BlackElo "2084"]
[TimeControl "300"]
[EndTime "1:37:54 PDT"]
[Termination "Ferrarifan27 won by checkmate"]

1. Nf3 {[%clk 0:04:58.2]} 1... d5 {[%clk 0:04:58.2]} 2. c4 {[%clk 0:04:56.6]}
2... d4 {[%clk 0:04:57.3]} 3. e3 {[%clk 0:04:54.4]} 3... c5 {[%clk 0:04:56.6]}
4. b4 {[%clk 0:04:42.9]} 4... dxe3 {[%clk 0:04:55.4]} 5. fxe3 {[%clk 0:04:41.5]}
5... cxb4 {[%clk 0:04:54.1]} 6. d4 {[%clk 0:04:40.5]} 6... e6 {[%clk 0:04:47.4]}
7. Bd3 {[%clk 0:04:35.8]} 7... Nf6 {[%clk 0:04:46.3]} 8. O-O {[%clk 0:04:32.1]}
8... Nc6 {[%clk 0:04:40.3]} 9. a3 {[%clk 0:04:16.1]} 9... bxa3 {[%clk
0:04:35.5]} 10. Nxa3 {[%clk 0:04:14.7]} 10... Be7 {[%clk 0:04:29.2]} 11. Qc2
{[%clk 0:03:55.9]} 11... Nb4 {[%clk 0:04:26.9]} 12. Qe2 {[%clk 0:03:54]} 12...
Nxd3 {[%clk 0:04:25.6]} 13. Qxd3 {[%clk 0:03:53.4]} 13... O-O {[%clk 0:04:24.3]}
14. Bb2 {[%clk 0:03:43.4]} 14... b6 {[%clk 0:04:19.3]} 15. e4 {[%clk 0:03:30.8]}
15... Bb7 {[%clk 0:04:17.4]} 16. e5 {[%clk 0:03:28.5]} 16... Ne4 {[%clk
0:04:14.7]} 17. Nb5 {[%clk 0:03:11.2]} 17... a6 {[%clk 0:04:10.3]} 18. Nc3
{[%clk 0:03:06.4]} 18... Nxc3 {[%clk 0:04:08.1]} 19. Qxc3 {[%clk 0:02:57.9]}
19... Rc8 {[%clk 0:04:02.2]} 20. Rac1 {[%clk 0:02:45.2]} 20... Bd5 {[%clk
0:03:55.3]} 21. Qd3 {[%clk 0:02:35.1]} 21... Bb7 {[%clk 0:03:50.2]} 22. Nd2
{[%clk 0:02:13.4]} 22... Qd7 {[%clk 0:03:40.9]} 23. Ne4 {[%clk 0:02:05.5]} 23...
Bxe4 {[%clk 0:03:27.2]} 24. Qxe4 {[%clk 0:02:02.1]} 24... Rfd8 {[%clk
0:03:26.1]} 25. Qf4 {[%clk 0:01:50.9]} 25... Bb4 {[%clk 0:03:22.8]} 26. Qg4
{[%clk 0:01:14.6]} 26... h6 {[%clk 0:02:58.7]} 27. d5 {[%clk 0:01:10.4]} 27...
exd5 {[%clk 0:02:54.7]} 28. e6 {[%clk 0:01:06.6]} 28... fxe6 {[%clk 0:02:50.3]}
29. Rf6 {[%clk 0:00:53.1]} 29... Rxc4 {[%clk 0:02:38.5]} 30. Qg6 {[%clk
0:00:48.6]} 30... Rxc1+ {[%clk 0:02:31.7]} 31. Bxc1 {[%clk 0:00:46.8]} 31...
Bc5+ {[%clk 0:02:21.8]} 32. Kh1 {[%clk 0:00:39.8]} 32... Bd4 {[%clk 0:01:56.5]}
33. Rf4 {[%clk 0:00:14.4]} 33... Be5 {[%clk 0:01:42]} 34. Rh4 {[%clk 0:00:10.4]}
34... Qf7 {[%clk 0:01:35.9]} 35. Qg4 {[%clk 0:00:07.6]} 35... Qf1# {[%clk
0:01:33.9]} 0-1

[Event "Live Chess"]
[Site "Chess.com"]
[Date "2023.05.21"]
[Round "-"]
[White "domrobson"]
[Black "BillythekidFellowes"]
[Result "0-1"]
[WhiteElo "1749"]
[BlackElo "2057"]
[TimeControl "300"]
[EndTime "1:38:19 PDT"]
[Termination "BillythekidFellowes won by resignation"]

1. d4 {[%clk 0:04:59.5]} 1... e5 {[%clk 0:04:56]} 2. dxe5 {[%clk 0:04:58.5]}
2... Nc6 {[%clk 0:04:55.5]} 3. Nf3 {[%clk 0:04:57.9]} 3... Qe7 {[%clk
0:04:54.4]} 4. Bg5 {[%clk 0:04:57.5]} 4... Qb4+ {[%clk 0:04:52.7]} 5. Nc3 {[%clk
0:04:57.1]} 5... Qxb2 {[%clk 0:04:52]} 6. Bd2 {[%clk 0:04:56.7]} 6... Bb4 {[%clk
0:04:49.6]} 7. Rb1 {[%clk 0:04:55.9]} 7... Qa3 {[%clk 0:04:48.9]} 8. Nd5 {[%clk
0:04:53.5]} 8... Bxd2+ {[%clk 0:04:44.7]} 9. Qxd2 {[%clk 0:04:52.9]} 9... Qxa2
{[%clk 0:04:43.8]} 10. Rd1 {[%clk 0:04:46.7]} 10... Kd8 {[%clk 0:04:38]} 11. e4
{[%clk 0:04:45.2]} 11... Nge7 {[%clk 0:04:36.9]} 12. Qg5 {[%clk 0:04:42.9]}
12... Rg8 {[%clk 0:04:29.6]} 13. Bd3 {[%clk 0:04:39.3]} 13... h6 {[%clk
0:04:28.4]} 14. Qh4 {[%clk 0:04:31]} 14... Qa5+ {[%clk 0:04:19.8]} 15. c3 {[%clk
0:04:23.5]} 15... g5 {[%clk 0:04:17.3]} 16. Qxh6 {[%clk 0:04:17.7]} 16... Nxd5
{[%clk 0:04:16.2]} 17. exd5 {[%clk 0:04:15.5]} 17... Qxc3+ {[%clk 0:04:15.6]}
18. Kf1 {[%clk 0:04:11.5]} 18... Qb3 {[%clk 0:04:02.6]} 19. Qf6+ {[%clk
0:03:59.5]} 19... Ne7 {[%clk 0:04:00.9]} 20. Be2 {[%clk 0:03:47]} 20... d6
{[%clk 0:03:53.4]} 21. Nxg5 {[%clk 0:03:41.4]} 21... Rg6 {[%clk 0:03:46.5]} 22.
Nxf7+ {[%clk 0:03:34.6]} 22... Ke8 {[%clk 0:03:45.8]} 23. Qf4 {[%clk 0:03:07.4]}
23... Bf5 {[%clk 0:03:43.2]} 24. exd6 {[%clk 0:03:00.6]} 24... Rf6 {[%clk
0:03:21.9]} 25. dxe7 {[%clk 0:02:50.7]} 25... Qxd1+ {[%clk 0:03:20.4]} 26. Bxd1
{[%clk 0:02:45.7]} 26... Bd3+ {[%clk 0:03:20.3]} 27. Be2 {[%clk 0:02:40.3]}
27... Bxe2+ {[%clk 0:03:17]} 28. Kxe2 {[%clk 0:02:39.7]} 28... Rxf4 {[%clk
0:03:16.9]} 29. Ne5 {[%clk 0:02:35.9]} 29... Re4+ {[%clk 0:03:15.8]} 0-1

[Event "Live Chess"]
[Site "Chess.com"]
[Date "2023.05.21"]
[Round "-"]
[White "Larchikov"]
[Black "mliszewski"]
[Result "1-0"]
[WhiteElo "2045"]
[BlackElo "1858"]
[TimeControl "300"]
[EndTime "1:38:21 PDT"]
[Termination "Larchikov won by resignation"]

1. e4 {[%clk 0:04:56.2]} 1... c6 {[%clk 0:04:59.1]} 2. d4 {[%clk 0:04:54.2]}
2... d5 {[%clk 0:04:59]} 3. Nc3 {[%clk 0:04:53.4]} 3... dxe4 {[%clk 0:04:54.2]}
4. Nxe4 {[%clk 0:04:53.3]} 4... Nf6 {[%clk 0:04:53.6]} 5. Bd3 {[%clk 0:04:51.4]}
5... Qxd4 {[%clk 0:04:51.3]} 6. Nxf6+ {[%clk 0:04:47.9]} 6... exf6 {[%clk
0:04:50.5]} 7. Nf3 {[%clk 0:04:47.5]} 7... Qd8 {[%clk 0:04:49.3]} 8. Qe2+ {[%clk
0:04:36.7]} 8... Qe7 {[%clk 0:04:46.4]} 9. Be3 {[%clk 0:04:33.3]} 9... Nd7
{[%clk 0:04:44.3]} 10. O-O-O {[%clk 0:04:32.3]} 10... Ne5 {[%clk 0:04:41.8]} 11.
Nxe5 {[%clk 0:04:30.6]} 11... fxe5 {[%clk 0:04:40.7]} 12. f4 {[%clk 0:04:29.1]}
12... exf4 {[%clk 0:04:37.2]} 13. Bxf4 {[%clk 0:04:25.5]} 13... Qxe2 {[%clk
0:04:35.9]} 14. Bxe2 {[%clk 0:04:25.4]} 14... Be7 {[%clk 0:04:33.8]} 15. Bc4
{[%clk 0:04:17.6]} 15... O-O {[%clk 0:04:30.9]} 16. Rhf1 {[%clk 0:04:15]} 16...
b5 {[%clk 0:04:24.2]} 17. Bd3 {[%clk 0:04:06.4]} 17... Be6 {[%clk 0:04:16.4]}
18. b3 {[%clk 0:03:58.7]} 18... a5 {[%clk 0:04:14.3]} 19. Be4 {[%clk 0:03:55.7]}
19... Ra6 {[%clk 0:04:03.3]} 20. Bd6 {[%clk 0:03:53.2]} 20... Bg5+ {[%clk
0:03:56.8]} 21. Kb1 {[%clk 0:03:50.2]} 21... Rd8 {[%clk 0:03:55.7]} 22. Bf4
{[%clk 0:03:40.8]} 22... Bf6 {[%clk 0:03:53.4]} 23. Rxd8+ {[%clk 0:03:37.4]}
23... Bxd8 {[%clk 0:03:52]} 24. Rd1 {[%clk 0:03:36.6]} 24... Bf6 {[%clk
0:03:50.7]} 25. Rd6 {[%clk 0:03:34.2]} 25... a4 {[%clk 0:03:43.3]} 26. Rxc6
{[%clk 0:03:30.7]} 26... Rxc6 {[%clk 0:03:41.6]} 27. Bxc6 {[%clk 0:03:29.7]}
27... axb3 {[%clk 0:03:41.2]} 28. axb3 {[%clk 0:03:28.9]} 28... b4 {[%clk
0:03:35.9]} 29. Kc1 {[%clk 0:03:23.2]} 29... Bc3 {[%clk 0:03:34.8]} 30. Bd2
{[%clk 0:03:22.3]} 30... Kf8 {[%clk 0:03:31.5]} 31. Bxc3 {[%clk 0:03:20.2]}
31... bxc3 {[%clk 0:03:30.9]} 32. Be4 {[%clk 0:03:19.2]} 32... g6 {[%clk
0:03:29.3]} 33. Kd1 {[%clk 0:03:18.1]} 33... f5 {[%clk 0:03:26.4]} 34. Bf3
{[%clk 0:03:17.4]} 34... Ke7 {[%clk 0:03:24.1]} 35. Ke2 {[%clk 0:03:16.7]} 35...
Kd6 {[%clk 0:03:15]} 36. Kd3 {[%clk 0:03:15.5]} 36... Kc5 {[%clk 0:03:14.7]} 37.
Kxc3 {[%clk 0:03:14.4]} 37... g5 {[%clk 0:03:13.6]} 38. g3 {[%clk 0:03:11.8]}
38... g4 {[%clk 0:03:11.4]} 39. Bg2 {[%clk 0:03:11]} 39... Bd7 {[%clk
0:03:09.8]} 40. Kd3 {[%clk 0:03:08.4]} 40... Bb5+ {[%clk 0:03:08.2]} 41. c4
{[%clk 0:03:06.9]} 41... Ba6 {[%clk 0:03:06.9]} 42. Kc3 {[%clk 0:03:06.2]} 42...
Bc8 {[%clk 0:02:59.8]} 43. b4+ {[%clk 0:03:05.1]} 43... Kb6 {[%clk 0:02:58.9]}
44. Kd4 {[%clk 0:03:04.4]} 1-0

[Event "Live Chess"]
[Site "Chess.com"]
[Date "2023.05.21"]
[Round "-"]
[White "JoeyCage"]
[Black "MarkLim1"]
[Result "0-1"]
[WhiteElo "2297"]
[BlackElo "1726"]
[TimeControl "300"]
[EndTime "1:38:25 PDT"]
[Termination "MarkLim1 won by checkmate"]

1. e4 {[%clk 0:04:55.6]} 1... e6 {[%clk 0:04:59.9]} 2. d4 {[%clk 0:04:53.6]}
2... d5 {[%clk 0:04:59.4]} 3. Nc3 {[%clk 0:04:51.4]} 3... Nf6 {[%clk 0:04:56.7]}
4. e5 {[%clk 0:04:48.5]} 4... Nfd7 {[%clk 0:04:55.4]} 5. Nce2 {[%clk 0:04:48.4]}
5... c5 {[%clk 0:04:55]} 6. c3 {[%clk 0:04:47]} 6... Nc6 {[%clk 0:04:54.5]} 7.
Nf3 {[%clk 0:04:44]} 7... b5 {[%clk 0:04:53.3]} 8. a3 {[%clk 0:04:37.9]} 8...
Qa5 {[%clk 0:04:47.1]} 9. Bd2 {[%clk 0:04:34.4]} 9... Ba6 {[%clk 0:04:44.1]} 10.
dxc5 {[%clk 0:04:29]} 10... Ndxe5 {[%clk 0:04:34.8]} 11. b4 {[%clk 0:04:26.5]}
11... Nd3# {[%clk 0:04:32.6]} 0-1

[Event "Live Chess"]
[Site "Chess.com"]
[Date "2023.05.21"]
[Round "-"]
[White "chessfiction"]
[Black "Ian-Morley"]
[Result "1-0"]
[WhiteElo "2330"]
[BlackElo "1053"]
[TimeControl "300"]
[EndTime "1:38:28 PDT"]
[Termination "chessfiction won by resignation"]

1. e4 {[%clk 0:04:58.2]} 1... e5 {[%clk 0:04:54.1]} 2. Bc4 {[%clk 0:04:57.3]}
2... Nf6 {[%clk 0:04:52.4]} 3. d4 {[%clk 0:04:56.2]} 3... c6 {[%clk 0:04:51.7]}
4. dxe5 {[%clk 0:04:55.2]} 4... d5 {[%clk 0:04:49.7]} 5. exf6 {[%clk 0:04:51.7]}
5... dxc4 {[%clk 0:04:48.8]} 6. Qxd8+ {[%clk 0:04:49.1]} 6... Kxd8 {[%clk
0:04:48]} 7. Bg5 {[%clk 0:04:48.1]} 7... g6 {[%clk 0:04:44]} 8. Nc3 {[%clk
0:04:45.5]} 8... Bb4 {[%clk 0:04:42.1]} 9. O-O-O+ {[%clk 0:04:45.4]} 9... Nd7
{[%clk 0:04:39.9]} 10. Nf3 {[%clk 0:04:43.4]} 10... Bxc3 {[%clk 0:04:38.9]} 11.
bxc3 {[%clk 0:04:41.9]} 11... b5 {[%clk 0:04:33.6]} 12. Ne5 {[%clk 0:04:39.9]}
12... h6 {[%clk 0:04:27.8]} 13. Nxf7+ {[%clk 0:04:30.8]} 13... Kc7 {[%clk
0:04:27]} 14. Bf4+ {[%clk 0:04:29.1]} 14... Kb7 {[%clk 0:04:22.4]} 15. Nxh8
{[%clk 0:04:29]} 15... g5 {[%clk 0:04:21.1]} 16. Be3 {[%clk 0:04:15]} 16... Nxf6
{[%clk 0:04:19.9]} 17. Nf7 {[%clk 0:04:14.2]} 17... Nxe4 {[%clk 0:04:19]} 18.
Nd6+ {[%clk 0:04:12.1]} 18... Kc7 {[%clk 0:04:16.7]} 19. Nxe4 {[%clk 0:04:10.6]}
1-0